bitfinex/quotes_ETHUSD_20250815
["timestamp","ask_amount","ask_price","bid_price","bid_amount"]
[1755261890956,0.04,4636.9,4635.5,7.10216458]
[1755261891993,2.19662091,4636.9,4635.5,3.24016458]
[1755261892211,2.19662091,4636.9,4635.5,7.10116458]
[1755261892496,2.15666956,4636.8,4635.5,7.10116458]
[1755261893003,2.15675004,4636.7,4635.5,6.01826458]
[1755261893295,2.15877305,4636.6,4635.5,6.46456458]
[1755261893512,0.002,4636.6,4634.9,3.4463]
[1755261893805,0.002,4636.6,4635.5,2.15726458]
[1755261894005,0.002,4636.6,4635.5,6.03783722]
[1755261894168,0.002,4636.6,4635.5,7.09916458]
[1755261895256,0.002,4636.6,4635.5,3.24016458]
[1755261895456,0.002,4636.6,4635.5,6.01426458]
[1755261895899,2.15684692,4636.4,4635.5,3.857]
[1755261896108,0.432,4636.6,4634.8,5.181]
[1755261896264,0.55,4636.2,4634.8,5.181]
[1755261896606,1.2239,4636.2,4634.9,3.87657543]
[1755261896761,2.15718269,4635.7,4634.9,3.855]
[1755261896957,0.21591827,4635.5,4634.9,3.855]
[1755261897932,0.21591827,4635.5,4634.9,3.87657543]
[1755261898131,0.002,4636.1,4635.0,2.17907227]
[1755261898413,2.15899112,4636.1,4634.9,3.855]
[1755261898733,2.1589922,4636.1,4635.1,2.15745075]
[1755261898932,0.108,4635.8,4635.2,0.108]
[1755261899251,0.002,4636.1,4635.3,3.852]
[1755261899532,0.108,4635.5,4635.3,3.852]
[1755261899700,2.93837969,4635.5,4635.3,3.852]
[1755261899906,0.6739,4635.4,4634.5,0.001]
[1755261900203,0.108,4635.0,4634.6,3.851]
[1755261900419,0.108,4635.5,4634.8,0.108]
[1755261900621,0.108,4635.5,4634.8,2.26555058]
[1755261900835,0.002,4636.1,4634.8,0.93581765]
[1755261901119,0.002,4636.1,4635.5,2.15726458]
[1755261901337,0.002,4636.1,4635.5,6.00726458]
[1755261901504,0.002,4636.1,4635.5,7.09016458]
[1755261901710,0.002,4636.1,4635.5,7.38911617]
[1755261902111,0.002,4636.1,4635.5,8.02571617]
[1755261902442,1e-08,4636.6,4636.5,2.1567993]
[1755261902625,1e-08,4636.6,4636.5,9.0047993]
[1755261902791,1e-08,4636.6,4636.5,10.6376993]
[1755261904114,1e-08,4636.6,4636.5,10.6366993]
[1755261904433,1e-08,4636.9,4636.8,2.15665976]
[1755261904649,1e-08,4636.9,4636.8,9.00165976]
[1755261904956,1e-08,4636.9,4636.8,10.08455976]
[1755261905671,1e-08,4637.0,4636.9,5.15661325]
[1755261905956,1e-08,4637.0,4636.9,6.65741248]
[1755261906332,1e-08,4637.0,4636.9,6.23951325]
[1755261907145,1e-08,4637.0,4636.9,6.78951325]
[1755261908162,1e-08,4637.0,4636.9,2.15661325]
[1755261908315,1e-08,4637.0,4636.9,5.99861325]
[1755261908520,1e-08,4637.0,4636.9,6.46621325]
[1755261908754,1e-08,4637.0,4636.9,11.54630055]
[1755261908957,1e-08,4637.0,4636.9,10.68401325]
[1755261912735,1e-08,4637.0,4636.9,10.79201325]
[1755261913555,1e-08,4637.0,4636.9,10.24201325]
[1755261913756,1e-08,4637.0,4636.9,5.26461325]
[1755261914077,1e-08,4637.0,4636.9,10.12601325]
[1755261914279,1e-08,4637.0,4636.9,11.46228055]
[1755261914481,1e-08,4637.0,4636.9,6.49288055]
[1755261914788,1e-08,4637.0,4636.9,9.45621325]
[1755261914984,1e-08,4637.0,4636.9,10.67401325]
[1755261915478,1e-08,4637.0,4636.9,10.78201325]
[1755261916441,0.042,4637.9,4636.9,10.78201325]
[1755261916442,1e-08,4637.9,4637.1,0.55]
[1755261916647,1e-08,4637.9,4637.8,2.70619474]
[1755261916858,1e-08,4637.9,4637.8,9.66475668]
[1755261917058,1e-08,4638.9,4638.8,2.70572993]
[1755261917284,1e-08,4638.9,4638.8,14.73328722]
[1755261917578,1e-08,4638.9,4638.8,17.6440386]
[1755261917886,1e-08,4638.9,4638.8,15.9576386]
[1755261918290,1e-08,4638.9,4638.8,16.4252386]
[1755261918587,1e-08,4638.9,4638.8,17.6430386]
[1755261919182,1e-08,4638.9,4638.8,12.5972386]
[1755261919348,1e-08,4638.9,4638.8,15.9556386]
[1755261919740,1e-08,4638.9,4638.8,16.4232386]
[1755261919956,1e-08,4638.9,4638.8,17.6410386]
[1755261921799,1e-08,4638.9,4638.8,12.1296386]
[1755261921982,1e-08,4638.9,4638.8,15.9516386]
[1755261922312,1e-08,4638.9,4638.8,17.6370386]
[1755261922869,1e-08,4639.3,4639.2,2.70554405]
[1755261923068,1e-08,4639.4,4639.3,5.70549759]
[1755261923312,1e-08,4639.4,4639.3,6.84089759]
[1755261923874,0.002,4639.7,4639.3,6.84089759]
[1755261924231,1e-08,4639.9,4639.8,5.70526531]
[1755261924386,1e-08,4639.9,4639.8,10.32112766]
[1755261924711,1e-08,4639.9,4639.8,11.45652766]
[1755261925130,1e-08,4640.3,4640.2,2.15507952]
[1755261925270,1e-08,4640.3,4640.2,6.10263031]
[1755261925479,1e-08,4640.3,4640.2,8.2244575]
[1755261925981,1e-08,4640.3,4640.2,8.8922575]
[1755261926782,1e-08,4640.3,4640.2,8.2244575]
[1755261927527,1e-08,4640.3,4640.2,7.7548575]
[1755261928420,1e-08,4640.3,4640.2,11.8902575]
[1755261928626,1e-08,4640.3,4640.2,12.0896408]
[1755261928796,1e-08,4640.3,4640.2,8.2736408]
[1755261929235,1e-08,4640.3,4640.2,12.0866408]
[1755261929401,1e-08,4640.3,4640.2,11.4188408]
[1755261929597,1e-08,4640.3,4640.2,11.8872575]
[1755261929832,0.04,4641.9,4641.8,2.15433667]
[1755261930034,0.04,4641.9,4641.8,5.96533667]
[1755261930334,0.6941,4641.9,4641.8,6.07333667]
[1755261930707,0.04,4641.9,4641.8,6.07333667]
[1755261931100,0.04,4642.9,4642.8,2.15387266]
[1755261931304,0.04,4642.9,4642.8,6.09341138]
[1755261931540,0.04,4642.9,4642.8,6.07187266]
[1755261932039,1.1566,4642.9,4642.8,0.108]
[1755261932249,1.27226,4642.9,4642.8,2.5519]
[1755261932741,0.61816,4642.9,4642.8,2.5519]
[1755261932923,0.04,4642.9,4642.8,4.70577266]
[1755261933867,0.04,4642.9,4642.8,3.807]
[1755261934067,0.04,4642.9,4642.8,5.96087266]
[1755261934270,0.4025,4642.9,4642.8,3.807]
[1755261934564,0.4025,4642.9,4642.8,3.806]
[1755261934879,2.55634134,4642.9,4642.8,3.805]
[1755261935166,3.02734921,4642.9,4642.8,3.805]
[1755261935326,0.87350787,4642.9,4642.8,3.805]
[1755261935546,0.4025,4642.9,4642.8,3.913]
[1755261935745,0.04,4642.9,4642.8,3.913]
[1755261936346,0.04,4642.9,4642.8,0.108]
[1755261936594,0.4025,4642.9,4642.8,3.803]
[1755261937158,0.65812477,4642.9,4642.8,3.803]
[1755261937489,0.65812477,4642.9,4642.8,5.95687266]
[1755261937490,0.04,4642.9,4642.8,5.95687266]
[1755261939201,0.4025,4642.9,4642.8,3.8]
[1755261939353,0.4025,4642.9,4642.7,0.108]
[1755261939552,0.04,4642.9,4642.8,3.799]
[1755261939753,0.04,4642.9,4642.8,6.08241138]
[1755261939983,0.04,4642.9,4642.8,6.06087266]
[1755261940296,0.04,4642.9,4642.8,6.70907266]
[1755261940657,0.04,4642.9,4642.8,7.17697266]
[1755261940852,0.04,4642.9,4642.8,6.70907266]
[1755261941256,0.04,4642.9,4642.8,7.17697266]
[1755261941772,0.04,4642.9,4642.8,7.17777266]
[1755261941972,0.0392,4642.9,4642.8,7.17777266]
[1755261944270,0.0392,4642.9,4642.8,10.17777266]
[1755261944599,0.042,4643.9,4643.8,2.15340884]
[1755261944770,0.042,4643.9,4643.8,5.94740884]
[1755261944970,0.042,4643.9,4643.8,7.06350884]
[1755261945201,0.042,4643.9,4643.8,7.61350884]
[1755261945499,1e-08,4644.3,4644.2,5.70322337]
[1755261945703,1e-08,4644.3,4644.2,10.28087503]
[1755261946002,1e-08,4644.3,4644.2,11.50497503]
[1755261946983,1e-08,4644.3,4644.2,7.71297503]
[1755261947188,0.04,4645.9,4645.8,2.15248181]
[1755261947385,0.04,4645.9,4645.8,6.05048181]
[1755261949021,0.04,4645.9,4645.8,6.69868181]
[1755261949321,0.04,4645.9,4645.8,11.05170526]
[1755261949525,0.04,4645.9,4645.8,10.58380526]
[1755261949695,0.04,4645.9,4645.8,5.278]
[1755261950026,0.4025,4645.9,4645.8,5.278]
[1755261950334,0.4025,4645.9,4645.8,9.065]
[1755261950534,0.4025,4645.9,4645.8,0.108]
[1755261950746,2.55493548,4645.9,4645.8,3.894]
[1755261950915,2.81042903,4645.9,4645.8,3.894]
[1755261951434,2.81042903,4645.9,4645.8,3.786]
[1755261951637,2.15255695,4645.7,4645.4,0.108]
[1755261951850,2.15255695,4645.7,4645.5,3.784]
[1755261951995,0.3625,4645.6,4645.5,3.784]
[1755261952394,0.04,4645.9,4645.4,0.108]
[1755261952395,0.04,4645.9,4645.6,2.15255178]
[1755261952638,1e-08,4645.9,4645.8,2.70248181]
[1755261952844,0.04,4646.9,4646.8,2.15201859]
[1755261953043,0.04,4646.9,4646.8,5.93501859]
[1755261953264,0.45994759,4648.8,4646.8,7.0437293]
[1755261953418,0.04,4648.9,4646.8,7.0437293]
[1755261953419,0.04,4648.9,4647.2,2.15183336]
[1755261953623,0.04,4648.9,4647.8,2.15155557]
[1755261953807,0.04,4648.9,4647.8,5.93355557]
[1755261954248,0.04,4648.9,4647.8,7.04965557]
[1755261954409,1e-08,4647.9,4647.8,11.519784]
[1755261954746,1e-08,4647.9,4647.8,10.969784]
[1755261955129,1e-08,4647.9,4647.8,6.719884]
[1755261955316,1e-08,4647.9,4647.8,10.59765557]
[1755261956113,1e-08,4648.9,4648.4,0.55]
[1755261956348,1e-08,4648.9,4648.8,2.70109275]
[1755261956516,1e-08,4648.9,4648.8,5.15109275]
[1755261956718,1e-08,4648.9,4648.8,8.93009275]
[1755261957310,1e-08,4648.9,4648.8,5.92809275]
[1755261957939,1e-08,4648.9,4648.8,7.04419275]
[1755261958353,1e-08,4648.9,4648.8,5.92709275]
[1755261958553,1e-08,4648.9,4648.5,5.168]
[1755261958993,1e-08,4648.9,4647.6,2.15164378]
[1755261958994,0.099,4648.8,4647.6,2.15164378]
[1755261959194,0.099,4648.8,4647.7,5.92659105]
[1755261959392,0.099,4648.8,4647.8,3.775]
[1755261959995,2.15118902,4648.6,4647.8,3.775]
[1755261960167,2.25023213,4648.5,4646.5,5.168]
[1755261960356,2.15152294,4647.9,4646.9,2.15196621]
[1755261960555,0.099,4647.8,4647.2,2.15183166]
[1755261960786,3.00000001,4648.9,4646.9,2.9596614]
[1755261960787,0.099,4647.9,4647.3,3.773]
[1755261961008,0.099,4647.9,4647.4,3.772]
[1755261961360,0.5,4647.7,4647.4,3.772]
[1755261961581,0.099,4647.6,4647.4,3.772]
[1755261961918,0.099,4647.6,4646.5,5.168]
[1755261961919,0.3625,4647.5,4647.3,3.772]
[1755261962110,2.51424075,4647.4,4647.3,3.772]
[1755261962267,0.3625,4647.4,4647.3,3.7728]
[1755261962470,2.15164816,4647.6,4647.3,3.7728]
[1755261962667,0.5,4647.7,4647.3,0.37808]
[1755261962978,2.15174075,4647.4,4647.3,0.0008]
[1755261963175,2.15183336,4647.2,4646.3,3.77]
[1755261963373,2.15183336,4647.2,4646.1,0.04]
[1755261963374,2.1522965,4646.2,4646.1,3.81]
[1755261963665,2.5147965,4646.2,4646.1,3.81]
[1755261963898,0.3625,4646.2,4646.1,0.4318]
[1755261964102,0.3625,4646.2,4646.1,0.04]
[1755261964498,2.5147965,4646.2,4646.1,0.04]
[1755261965446,5.6227965,4646.2,4646.1,0.04]
[1755261965598,5.6227965,4646.2,4644.7,5.167]
[1755261965599,2.15275983,4645.2,4645.1,0.148]
[1755261965777,2.15271186,4645.4,4645.1,3.808]
[1755261965980,2.15270778,4645.4,4645.2,0.3916]
[1755261966181,2.15271349,4645.3,4645.1,0.04]
[1755261966422,5.26075983,4645.2,4645.1,0.04]
[1755261966718,5.62325983,4645.2,4645.1,0.04]
[1755261966916,6.0819407,4645.2,4645.1,0.04]
[1755261967425,2.26075983,4645.2,4645.1,0.04]
[1755261967592,0.108,4645.2,4645.1,0.04]
[1755261967799,2.15271381,4645.3,4645.1,0.04]
[1755261968520,2.26067285,4645.4,4645.1,0.04]
[1755261968695,2.15275983,4645.2,4645.1,0.04]
[1755261969227,0.3625,4646.2,4645.1,0.04]
[1755261969426,0.46096581,4646.6,4645.1,0.4206]
[1755261969611,2.15239898,4646.0,4645.1,0.4206]
[1755261969814,2.15270577,4645.4,4645.1,0.04]
[1755261970011,3.0,4646.4,4645.1,0.04]
[1755261970012,2.15261396,4645.6,4645.1,0.04]
[1755261970329,0.002,4646.6,4645.1,0.04]
[1755261970689,2.15411961,4646.6,4645.5,2.15258097]
[1755261970890,2.15219518,4646.5,4645.6,3.764]
[1755261971090,0.76886756,4646.6,4645.6,3.764]
[1755261971499,0.002,4646.6,4645.6,3.764]
[1755261972302,0.002,4646.6,4645.9,2.15243545]
[1755261972508,0.002,4646.6,4645.7,2.15250247]
[1755261972705,0.002,4646.6,4645.6,3.764]
[1755261973015,0.002,4646.6,4645.7,2.15252814]
[1755261973422,0.002,4646.6,4645.8,0.6487]
[1755261973606,0.002,4646.6,4646.2,2.15227291]
[1755261973807,0.002,4646.6,4646.3,3.761]
[1755261974044,0.002,4646.6,4646.5,2.15215753]
[1755261974243,0.002,4646.6,4646.4,0.02152203]
[1755261974244,0.002,4646.6,4646.4,1.0869]
[1755261974398,0.002,4646.6,4646.5,2.80085753]
[1755261974597,0.002,4646.6,4646.5,3.23905753]
[1755261975600,0.002,4646.6,4646.5,3.2605791]
[1755261975811,0.002,4646.6,4646.5,3.23905753]
[1755261976014,0.002,4646.6,4646.5,6.23905753]
[1755261976344,1e-08,4646.6,4646.5,8.04429018]
[1755261977240,1e-08,4646.6,4646.5,8.13046018]
[1755261977619,1e-08,4646.6,4646.5,8.04429018]
[1755261978538,1e-08,4646.6,4646.5,11.80029018]
[1755261979247,1e-08,4646.6,4646.5,0.6487]
[1755261979413,1e-08,4646.6,4646.5,3.756]
[1755261979601,1e-08,4646.6,4646.5,5.90815753]
[1755261980121,1e-08,4646.6,4646.5,6.99505753]
[1755261980541,1e-08,4646.6,4646.5,9.99505753]
[1755261980701,1e-08,4646.6,4646.5,11.75978732]
[1755261982933,1e-08,4647.9,4647.8,2.70155557]
[1755261983173,1e-08,4647.9,4647.8,14.64107112]
[1755261983315,1e-08,4647.9,4647.8,15.70645557]
[1755261983503,1e-08,4647.9,4647.8,17.49226366]
[1755261983702,1e-08,4648.9,4648.8,2.70109275]
[1755261984030,1e-08,4648.9,4648.8,10.53899275]
[1755261984232,0.00120001,4649.4,4649.3,2.15086141]
[1755261984551,0.00120001,4649.4,4649.3,6.33104092]
[1755261984904,0.00120001,4649.4,4649.3,7.41794092]
[1755261985319,0.00120001,4649.4,4649.3,10.96794092]
[1755261985837,0.00120001,4649.4,4649.3,10.41794092]
[1755261986001,0.00120001,4649.4,4649.3,10.41694092]
[1755261987339,0.00120001,4649.4,4649.3,2.79956141]
[1755261987539,0.00120001,4649.4,4649.3,5.89686141]
[1755261988341,0.00120001,4649.4,4649.3,6.98376141]
[1755261988929,0.00120001,4649.4,4649.3,5.89686141]
[1755261989246,0.00120001,4649.4,4649.3,6.00406141]
[1755261989451,0.00120001,4649.4,4649.3,7.66106092]
[1755261989663,0.00120001,4649.4,4649.3,8.20646092]
[1755261990867,1e-08,4649.4,4649.3,11.75646092]
[1755261991943,0.00120002,4649.9,4649.8,2.70063013]
[1755261992148,0.00120002,4649.9,4649.8,9.71269314]
[1755261992453,0.00120002,4649.9,4649.8,10.79959314]
[1755261992984,0.00120002,4649.9,4649.8,5.52789314]
[1755261993145,0.00120002,4649.9,4649.8,9.26789314]
[1755261993546,0.00120002,4649.9,4649.8,10.35479314]
[1755261993946,0.00120002,4649.9,4649.8,10.90479314]
[1755261994491,0.00120002,4649.9,4649.8,10.46559314]
[1755261994643,0.00120002,4649.9,4649.8,10.90379314]
[1755261995049,0.00120002,4649.9,4649.8,9.91559314]
[1755261995259,0.00120002,4649.9,4649.8,9.91459314]
[1755261995460,0.00120002,4649.9,4649.8,10.35279314]
[1755261996589,0.04,4650.9,4649.9,3.0]
[1755261996745,0.04,4650.9,4650.0,3.737]
[1755261996949,0.04,4650.9,4650.8,0.1072]
[1755261997256,0.04,4650.9,4650.8,3.736]
[1755261997758,0.04,4650.9,4650.6,0.1072]
[1755261997945,0.04,4650.9,4649.3,0.6335]
[1755261997946,2.51266771,4650.8,4650.7,3.735]
[1755261998772,0.3625,4650.8,4650.7,3.735]
[1755261998972,0.3625,4650.8,4650.4,0.1072]
[1755261999285,0.3625,4650.7,4650.5,3.734]
[1755261999444,0.3625,4650.6,4650.4,0.1072]
[1755261999788,0.3625,4650.5,4649.7,5.164]
[1755261999990,2.15046096,4650.2,4649.8,3.8412]
[1755262000172,2.15063013,4649.8,4649.7,5.164]
[1755262000379,2.15067896,4649.7,4649.6,0.1072]
[1755262000577,2.51317896,4649.7,4649.6,3.8402]
[1755262000759,2.51317896,4649.7,4649.6,3.733]
[1755262000760,2.87169686,4649.7,4649.6,3.733]
[1755262001308,2.87169686,4649.7,4649.3,0.0008]
[1755262001309,2.15076889,4649.5,4649.4,3.733]
[1755262001593,2.51326889,4649.5,4649.4,3.733]
[1755262001752,0.1072,4649.5,4649.4,3.733]
[1755262001949,0.1072,4649.8,4649.4,3.733]
[1755262002196,2.15068236,4649.7,4649.3,0.0008]
[1755262002495,2.89317029,4649.4,4649.3,0.0008]
[1755262002798,5.89317029,4649.4,4649.3,0.0008]
[1755262003092,6.25567029,4649.4,4649.3,0.0008]
[1755262003588,6.80567029,4649.4,4649.3,0.0008]
[1755262003962,2.15137042,4648.2,4648.1,0.04]
[1755262004385,2.51387042,4648.2,4648.1,0.04]
[1755262004696,2.62107042,4648.2,4648.1,0.04]
[1755262004995,5.73580727,4648.2,4648.1,0.04]
[1755262005402,6.09830727,4648.2,4648.1,0.04]
[1755262005691,0.47723685,4648.2,4648.1,0.04]
[1755262005887,0.1072,4648.4,4648.1,3.769]
[1755262006087,3.1072,4648.6,4648.1,3.769]
[1755262006290,0.1072,4648.6,4648.1,3.769]
[1755262006699,2.15110637,4648.8,4648.1,3.769]
[1755262007010,0.3625,4650.4,4648.2,1.0865]
[1755262007214,2.1502161,4650.7,4648.1,3.769]
[1755262007215,0.3625,4649.6,4648.3,3.727]
[1755262007366,3.0,4649.3,4648.3,3.727]
[1755262007567,2.78598788,4649.4,4648.4,2.15123408]
[1755262007824,0.27859879,4649.3,4648.3,3.727]
[1755262007977,2.15090352,4649.3,4648.2,0.6327]
[1755262008179,0.63515514,4649.4,4648.3,4.1808]
[1755262008379,2.15091231,4649.2,4648.4,0.48535]
[1755262008579,0.63515514,4649.4,4648.2,2.78407031]
[1755262008782,0.3625,4649.3,4648.3,3.726]
[1755262009170,2.15105552,4648.9,4648.1,0.04]
[1755262009504,0.73019689,4648.9,4648.1,0.04]
[1755262009719,2.15118382,4648.7,4648.2,3.726]
[1755262009867,2.51370759,4648.6,4648.2,3.726]
[1755262010069,0.3625,4648.6,4648.1,0.04]
[1755262010379,3.0,4649.3,4648.2,3.725]
[1755262010569,2.15107592,4648.9,4648.2,3.725]
[1755262010772,2.15110328,4648.8,4648.2,3.725]
[1755262011006,2.15105231,4648.9,4648.2,3.725]
[1755262011315,2.15124554,4648.5,4648.2,3.725]
[1755262011480,0.3625,4648.5,4648.2,3.724]
[1755262012011,0.3625,4648.5,4648.1,3.764]
[1755262012163,2.15113435,4648.8,4648.1,3.765]
[1755262012369,0.25136343,4648.7,4648.1,3.765]
[1755262012569,0.63515514,4649.4,4648.1,4.2188]
[1755262012799,0.63515514,4649.4,4648.2,1.0865]
[1755262013014,0.63515514,4649.4,4648.4,2.15127785]
[1755262013193,0.63515514,4649.4,4648.5,0.02151231]
[1755262013370,0.63515514,4649.4,4649.2,2.15090434]
[1755262013571,0.63515514,4649.4,4649.3,4.3557]
[1755262013803,0.63515514,4649.4,4649.3,3.723]
[1755262014182,0.63515514,4649.4,4649.3,4.8095]
[1755262014378,0.63515514,4649.4,4649.3,6.96036141]
[1755262014940,0.004,4649.9,4649.3,4.8095]
[1755262015231,0.004,4649.9,4649.7,2.15064387]
[1755262015416,0.004,4649.9,4649.4,1.0865]
[1755262015598,0.004,4649.9,4649.6,2.15071537]
[1755262015803,0.002,4650.4,4650.3,2.15039889]
[1755262016111,0.002,4650.4,4650.3,5.87139889]
[1755262016513,0.002,4650.4,4650.3,6.95789889]
[1755262016731,0.002,4650.4,4650.3,7.86873723]
[1755262017189,0.002,4650.4,4650.3,7.97593723]
[1755262020307,0.002,4650.4,4650.3,3.8242]
[1755262020528,0.002,4650.4,4650.3,5.97459889]
[1755262020701,0.002,4650.4,4650.3,7.06109889]
[1755262022745,0.002,4650.4,4650.3,3.34409889]
[1755262022897,0.002,4650.4,4650.3,7.05809889]
[1755262023098,0.002,4650.4,4650.3,7.97895598]
[1755262023436,0.002,4650.4,4650.3,4.26495598]
[1755262023644,0.002,4650.4,4650.3,7.52515598]
[1755262023995,0.002,4650.4,4650.3,7.97895598]
[1755262024299,0.002,4650.4,4650.3,5.37475709]
[1755262024523,0.002,4650.4,4650.3,3.8192]
[1755262024940,0.002,4650.4,4649.4,0.69603108]
[1755262025145,0.002,4650.4,4650.1,0.1072]
[1755262025439,2.51289889,4650.3,4650.2,3.712]
[1755262025642,2.15082248,4649.4,4648.9,5.165]
[1755262025807,2.15084604,4649.4,4649.0,3.711]
[1755262026010,2.1507708,4649.5,4649.0,3.711]
[1755262026217,2.25793201,4649.6,4649.0,3.711]
[1755262026413,2.15005426,4649.4,4649.0,3.711]
[1755262026943,0.3625,4649.8,4649.1,3.711]
[1755262027145,2.25810768,4649.2,4649.1,3.711]
[1755262028030,2.1511853,4648.6,4648.5,0.1072]
[1755262028241,0.4697,4649.2,4648.5,3.8162]
[1755262028432,0.3625,4649.2,4648.5,3.709]
[1755262028640,0.3625,4649.2,4647.7,0.001]
[1755262028641,0.1072,4648.9,4648.6,3.708]
[1755262028839,0.3625,4648.8,4648.7,3.708]
[1755262029040,2.51359275,4648.8,4648.7,3.709]
[1755262029510,2.15137042,4648.2,4648.0,0.1072]
[1755262029703,2.15137042,4648.2,4648.1,3.749]
[1755262029904,2.15137042,4648.2,4648.1,0.041]
[1755262030109,2.58163744,4648.2,4648.1,3.749]
[1755262030310,2.94413744,4648.2,4648.1,3.749]
[1755262030611,2.1514167,4648.1,4648.0,0.001]
[1755262030832,5.5139167,4648.1,4648.0,0.001]
[1755262031435,6.0639167,4648.1,4648.0,0.001]
[1755262032709,2.1514167,4648.1,4648.0,0.001]
[1755262033646,0.1072,4648.3,4648.0,0.001]
[1755262033847,2.15137579,4648.2,4648.0,0.001]
[1755262034053,0.1072,4648.3,4648.0,0.5766]
[1755262034211,0.1072,4648.3,4648.1,1.0177]
[1755262034413,0.1072,4648.9,4648.1,1.0177]
[1755262034612,0.1072,4648.9,4648.2,0.1072]
[1755262034842,0.1072,4649.3,4648.6,0.1072]
[1755262035013,0.1072,4649.3,4648.7,3.704]
[1755262035211,3.1072,4649.3,4648.6,0.1072]
[1755262035514,3.1072,4649.3,4648.0,0.001]
[1755262035515,2.15130733,4648.4,4648.0,0.001]
[1755262035709,2.15132419,4648.3,4648.0,0.001]
[1755262035920,2.15127101,4648.5,4648.0,0.001]
[1755262036124,0.2151271,4648.4,4648.0,0.001]
[1755262036324,0.65366326,4649.4,4648.1,1.0177]
[1755262036527,3.0,4649.3,4648.1,0.5756]
[1755262036855,2.15100189,4649.0,4648.1,0.5756]
[1755262037012,0.65366326,4649.4,4648.2,0.0215137]
[1755262037215,0.65366326,4649.4,4648.5,2.15118624]
[1755262037420,0.65366326,4649.4,4648.6,3.703]
[1755262037641,0.65366326,4649.4,4648.7,2.15109452]
[1755262038029,0.65366326,4649.4,4648.8,2.15109162]
[1755262038358,2.15086141,4649.3,4648.9,3.702]
[1755262038559,2.15099025,4649.1,4649.0,3.702]
[1755262038720,2.15100021,4649.0,4648.9,3.702]
[1755262038924,2.15104648,4648.9,4648.8,3.701]
[1755262039559,2.15128857,4648.4,4648.0,0.001]
[1755262039758,2.15128857,4648.4,4648.1,3.701]
[1755262039961,2.15128857,4648.4,4648.0,0.001]
[1755262040268,0.55,4649.4,4648.1,3.701]
[1755262040431,2.15127379,4648.5,4648.1,3.701]
[1755262040774,2.15086141,4649.3,4648.1,3.701]
[1755262040775,0.63800749,4649.1,4648.2,1.0177]
[1755262040943,2.15100021,4649.0,4648.2,1.0177]
[1755262041126,0.63800749,4649.1,4648.3,1.03921324]
[1755262041459,0.63800749,4649.1,4648.3,1.0177]
[1755262041760,0.63800749,4649.1,4648.6,2.15118406]
[1755262041958,0.63800749,4649.1,4648.5,2.15123142]
[1755262042257,0.63800749,4649.1,4648.8,2.15105363]
[1755262042420,0.63800749,4649.1,4648.9,4.73821046]
[1755262042621,0.63800749,4649.1,4649.0,1.0177]
[1755262043035,2.15080939,4649.5,4649.0,1.0177]
[1755262043242,2.150681,4649.7,4649.0,0.5756]
[1755262043554,0.2190681,4649.7,4649.0,2.72658565]
[1755262043761,0.04,4649.9,4649.0,0.5756]
[1755262043964,0.04,4649.9,4649.0,2.15098734]
[1755262044172,0.04,4649.9,4649.1,1.0177]
[1755262044536,0.04,4649.9,4649.2,1.0177]
[1755262044739,0.04,4649.9,4649.5,2.15073987]
[1755262045004,0.04,4649.9,4649.6,3.696]
[1755262045144,0.04,4649.9,4649.6,5.8682222]
[1755262045348,0.04,4649.9,4649.8,2.25783013]
[1755262046175,0.04,4649.9,4649.8,3.27553013]
[1755262046472,0.04,4649.9,4649.8,4.20926094]
[1755262046877,0.04,4649.9,4649.8,4.18775464]
[1755262048379,0.04,4649.9,4649.8,7.18775464]
[1755262049256,0.04,4649.9,4649.8,10.88075464]
[1755262050950,0.04,4649.9,4649.8,6.74565464]
[1755262051150,0.04,4649.9,4649.8,3.7982]
[1755262051584,0.55,4649.7,4648.3,0.0008]
[1755262051784,6.3548921,4648.4,4648.3,0.0008]
[1755262051986,6.9842687,4648.4,4648.3,0.0008]
[1755262052226,6.04997785,4648.4,4648.3,0.0008]
[1755262052423,5.60717785,4648.4,4648.3,0.0008]
[1755262052921,6.93301493,4648.4,4648.3,0.0008]
[1755262053133,6.82581493,4648.4,4648.3,0.0008]
[1755262053485,5.23747785,4648.4,4648.3,0.0008]
[1755262053885,5.15127785,4648.4,4648.3,0.0008]
[1755262054385,5.07687785,4648.4,4648.3,0.0008]
[1755262054790,5.33937785,4648.4,4648.3,0.0008]
[1755262055022,2.1514167,4648.1,4647.8,0.001]
[1755262055432,2.4139167,4648.1,4647.8,0.001]
[1755262055583,2.1514167,4648.1,4647.8,0.001]
[1755262056016,0.08619,4648.7,4647.8,0.001]
[1755262056216,2.15100334,4649.0,4647.8,0.001]
[1755262056531,2.15140878,4648.2,4647.8,0.001]
[1755262056683,3.07820335,4648.4,4647.8,0.001]
[1755262056885,0.92688282,4648.4,4647.8,0.001]
[1755262057202,2.1514167,4648.1,4647.8,0.001]
[1755262057584,2.4139167,4648.1,4647.8,0.001]
[1755262057783,6.26313045,4648.1,4647.8,0.001]
[1755262058359,6.81313045,4648.1,4647.8,0.001]
[1755262058895,6.81313045,4648.1,4647.6,0.001]
[1755262058896,2.70155557,4647.8,4647.6,0.001]
[1755262059431,2.96405557,4647.8,4647.6,0.001]
[1755262060241,2.70155557,4647.8,4647.6,0.001]
[1755262060384,3.03994324,4647.8,4647.6,0.001]
[1755262060591,2.48994324,4647.8,4647.6,0.001]
[1755262061128,3.03994324,4647.8,4647.6,0.001]
[1755262061329,3.30244324,4647.8,4647.6,0.001]
[1755262061530,3.38866124,4647.8,4647.6,0.001]
[1755262063117,3.49586124,4647.8,4647.6,0.001]
[1755262063426,2.70178705,4647.3,4647.2,0.001]